[Event "Silves Open 2025"]
[Site "Fissul"]
[Date "2025.03.06"]
[Round "8.13"]
[White "Salas Munoz, Paulino Jose"]
[Black "Boesel, Alexander"]
[Result "0-1"]
[Annotator "TA"]
[ECO "B12"]
[WhiteElo "1915"]
[BlackElo "2046"]
[PlyCount "120"]
[EventDate "2025.03.03"]
[EventType "swiss"]
[EventCountry "POR"]
[SourceTitle "playchess.com"]
[Source "ChessBase"]
[SourceQuality "1"]
[TimeControl "5400+30"]

{[%evp 9,120,6,6,0,14,-19,9,-8,-1,0,14,27,22,10,24,-4,4,0,0,-40,-32,-64,-9,-38,6,-45,0,-38,-25,-43,-25,-51,0,-8,0,-44,-47,-41,-29,-90,-101,-85,-21,-60,-64,-117,-89,-102,-101,-116,-99,-124,-98,-88,-28,-33,-10,-184,-170,-220,-80,-570,-522,-611,-216,-257,-194,-259,-152,-158,-161,-286,-286,-343,-339,-390,-397,-413,-378,-517,-515,-637,-616,-1008,-515,-441,-360,-359,-358,-317,-301,-899,-718,-989,-936,-4134,-4134,-2681,0,-941,-886,-800,-657,-542,0,-1918,-675,-720,-633,-505,-367,-344,-330]} 1. e4 {[%emt 1:31:00]} c6 {[%emt 1:31:00]} 2. d4 {[%emt 0:00:30]} d5 {[%emt 0:00:30]} 3. e5 {[%emt 0:00:30]} c5 {[%emt 0:00:30]} 4. Nf3 {[%emt 0:00:30]} cxd4 {[%emt 0:00:30]} 5. Qxd4 {[%emt 0:00:30]} Nc6 {[%emt 0:00:30]} 6. Qf4 {[%emt 0:00:30] B12: Caro-Kann: Advance Variation.} e6 {[%emt 0:00:30]} 7. a3 {[%emt 0:00:30]} Qc7 {[%emt 0:00:30]} 8. Nc3 {[%emt 0:00:30] The position is equal.} a6 {[%emt 0:00:30] Prevents Nb5} 9. Bd3 {[%emt 0:00:30]} f6 {[%emt 0:00:30]} 10. exf6 {[%emt 0:00:30]} Qxf4 {[%emt 0:00:30]} 11. Bxf4 {[%emt 0:00:30] Threatens to win with Na4.} gxf6 {[%emt 0:00:30]} 12. Bg3 {[%emt 0:00:30]} Nge7 $146 {[%emt 0:00:30]} (12... Kf7 13. Na4 Nge7 14. Nb6 Ra7 15. O-O-O Bh6+ 16. Kb1 e5 17. Nxd5 Nxd5 18. Bc4 Nce7 19. Bxd5+ Nxd5 20. Rxd5 {1-0 Seo,J (2455)-Arias,J (2339) Titled Tuesday intern op 30th Apr Early blitz 2024 (10)}) 13. O-O-O {[%emt 0:00:30]} e5 {[%emt 0:00:30]} 14. Be2 {[%emt 0:00:30]} Be6 {[%emt 0:00:30]} 15. Rhe1 {[%emt 0:00:30]} Rd8 {[%emt 0:00:30]} (15... O-O-O $1 $15 16. Bh4 Bg7) 16. Kb1 {[%emt 0:00:30]} Bg7 {[%emt 0:00:30]} 17. Bf1 {[%emt 0:00:30]} ({Better is} 17. Nh4 $11) 17... b5 {[%emt 0:00:30]} 18. h3 {[%emt 0:00:30]} O-O {[%emt 0:00:30]} 19. Bh2 {[%emt 0:00:30]} Bf7 {[%emt 0:00:30]} 20. g4 {[%emt 0:00:30]} Ng6 {[%emt 0:00:30]} (20... b4 $15 21. axb4 Nxb4) 21. Bg3 {[%emt 0:00:30]} Rfe8 {[%emt 0:00:30]} 22. Bg2 {[%emt 0:00:30]} b4 $36 {[%emt 0:00:30][%mdl 2048] Black has good play.} 23. axb4 {[%emt 0:00:30]} Nxb4 {[%emt 0:00:30]} 24. h4 {[%emt 0:00:30] [#]} (24. Nh4 $11) 24... h5 $1 $17 {[%emt 0:00:30]} 25. gxh5 {[%emt 0:00:30][%csl Of2,Oh4,Oh5] White has weak pawns} Nf8 {[%emt 0:00:30]} (25... Ne7 $17 26. h6 Bxh6 27. Bxe5 Bg6 (27... fxe5 28. Nxe5 Bg7 29. Nxf7 $17) 28. Bxf6 Bxc2+ (28... Nxc2 $2 29. Rxe7 Ne3+ 30. Ka2 $18) 29. Ka1 Bxd1 30. Rxd1 Rd6) 26. Nh2 {[%emt 0:00:30]} d4 $1 {[%emt 0:00:30]} (26... Bxh5 27. Bxd5+ Nxd5 28. Rxd5 $11) 27. h6 {[%emt 0:00:30]} Bxh6 {[%emt 0:00:30]} 28. Ne4 {[%emt 0:00:30]} Bg7 {[%emt 0:00:30] Black is more active.} (28... Ba2+ 29. Ka1 Bg7 (29... Nxc2+ 30. Kxa2 Nxe1 31. Rxe1 $16) 30. Ng4 $19) 29. Bh3 {[%emt 0:00:30]} Bg6 $1 {[%emt 0:00:30]} 30. f3 {[%emt 0:00:30]} f5 {[%emt 0:00:30][%cal Od4d3] Wards off Ng4} 31. h5 {[%emt 0:00:30]} fxe4 {[%emt 0:00:30]} (31... Bxh5 32. Bxf5 Bg6 33. Bxg6 Nxg6 34. Rh1 $16) (31... Bh7 $1 $17 32. h6 fxe4 (32... Bxh6 $2 33. Nf6+ Kf7 34. Nxh7 $16) 33. hxg7 e3) 32. hxg6 $11 {[%emt 0:00:30]} e3 {[%emt 0:00:30]} 33. Bh4 $2 {[%emt 0:00:30] [#]} (33. Bf5 $11 {and White has nothing to worry.}) 33... Rb8 $1 $19 {[%emt 0:00:30][%cal Ob4d5]} (33... Rd6 34. Rxe3 Nxg6 35. Rb3 Nxc2 36. Bg3 $15) 34. Ng4 {[%emt 0:00:30]} (34. Bf5 $142) 34... Rb6 {[%emt 0:00:30]} (34... Nxg6 $19 {and Black stays clearly on top.} 35. Bg3 Nd5) 35. Kc1 $2 {[%emt 0:00:30][%mdl 8192]} (35. Nxe3 $17 dxe3 36. Bf1) 35... Nxg6 {[%emt 0:00:30]} 36. Bg3 {[%emt 0:00:30]} Rc6 $2 {[%emt 0:00:30] White is weak on the dark squares} (36... Na2+ 37. Kb1 Nc3+ 38. Kc1 Nxd1 39. Rxd1 Nf4 40. Bxf4 exf4) 37. Kb1 {[%emt 0:00:30][%cal Og4e3]} Rb8 {[%emt 0:00:30]} 38. Rg1 {[%emt 0:00:30]} (38. Nxe3 $142 dxe3 39. c3) 38... Rb5 {[%emt 0:00:30]} (38... Nxc2 39. Nxe5 Bxe5 40. Bxe5 $19) (38... Nd5 $19 39. Nxe5 Nc3+ 40. Kc1 Ne2+ 41. Kb1 Bxe5 42. Bxe5 Nxg1 43. Rxg1 Rb4) 39. Bf1 $17 {[%emt 0:00:30] [#]} Rbc5 {[%emt 0:00:30][%cal Og8f7]} 40. Bd3 {[%emt 0:00:30]} (40. Nxe5 {was called for.} Nxe5 41. Bxe5 Rxe5 42. Rxd4) 40... Nxd3 $19 {[%emt 0:00:30]} (40... Nxc2 $2 {is the wrong capture.} 41. Rc1 $18) 41. Rxd3 {[%emt 0:00:30]} Nf4 {[%emt 0:00:30]} (41... Rxc2 42. Nxe5 Nxe5 43. Bxe5 $19) 42. Bxf4 {[%emt 0:00:30]} exf4 {[%emt 0:00:30]} 43. Rg2 {[%emt 0:00:30]} Kf8 {[%emt 0:00:30]} 44. Rb3 {[%emt 0:00:30]} Rb5 {[%emt 0:00:30]} 45. Rxb5 {[%emt 0:00:30]} axb5 {[%emt 0:00:30][%mdl 4096] Endgame KRB-KRN. Black is a pawn up.} 46. Ka2 {[%emt 0:00:30]} Rd6 {[%emt 0:00:30]} 47. Kb3 {[%emt 0:00:30]} d3 {[%emt 0:00:30]} 48. cxd3 {[%emt 0:00:30]} Rxd3+ {[%emt 0:00:30]} 49. Kc2 {[%emt 0:00:30]} Rd4 {[%emt 0:00:30]} 50. b3 $2 {[%emt 0:00:30]} (50. Re2) 50... Rd6 {[%emt 0:00:30] Strongly threatening ...b4.} 51. Re2 {[%emt 0:00:30]} b4 {[%emt 0:00:30]} 52. Kb1 {[%emt 0:00:30]} Ra6 {[%emt 0:00:30]} 53. Kc2 {[%emt 0:00:30]} Rd6 {[%emt 0:00:30]} (53... Ra2+ $142 54. Kd3 Ra7) 54. Kb1 $1 {[%emt 0:00:30]} Kf7 {[%emt 0:00:30]} 55. Kc2 {[%emt 0:00:30]} Bc3 {[%emt 0:00:30]} 56. Rh2 {[%emt 0:00:30]} Bg7 $2 {[%emt 0:00:30]} (56... Rd5 $19 57. Re2 Bf6 58. Nxe3 fxe3 59. Rxe3 Rc5+ 60. Kd1 Rc3) 57. Kb1 $2 {[%emt 0:00:30][%mdl 8192]} (57. Re2 $11 Bc3 58. Nxe3 fxe3 59. Rxe3) 57... Ra6 {[%emt 0:00:30]} (57... Rd3 $142 58. Kc2 Rc3+ 59. Kd1 Rxb3) 58. Re2 {[%emt 0:00:30]} Kg6 {[%emt 0:00:30]} 59. Kc2 {[%emt 0:00:30]} Kg5 {[%emt 0:00:30]} 60. Kd3 {[%emt 0:00:30]} Rd6+ {[%emt 0:00:30] Weighted Error Value: White=0.81/Black=0.60  Loses game:     	White=2     	---        Mistake:       	White=7     	Black=8      Inaccurate:     	White=12    	Black=3      OK:         	White=6     	Black=15     Best:        	White=4     	Black=3      Strong:       	---       	Black=3} 0-1

[Event "Silves Open 2025"]
[Site "Fissul"]
[Date "2025.03.06"]
[Round "8.14"]
[White "Finkler, Kai Andreas"]
[Black "Paiva, Manuel Maria Fonseca"]
[Result "0-1"]
[Annotator "TA"]
[ECO "E09"]
[WhiteElo "1990"]
[BlackElo "1904"]
[PlyCount "62"]
[EventDate "2025.03.03"]
[EventType "swiss"]
[EventCountry "POR"]
[SourceTitle "playchess.com"]
[Source "ChessBase"]
[SourceQuality "1"]
[TimeControl "5400+30"]

{[%evp 23,62,23,21,10,27,20,31,35,83,80,114,80,63,-62,-55,-50,-61,-54,-64,-150,-156,-145,-112,-100,-96,-92,-97,-96,-76,-87,-84,-308,-293,-312,-309,-1064,-465,-5293,-760,-29993,-29994]} 1. Nf3 {[%emt 0:00:30]} d5 {[%emt 0:01:22]} 2. g3 {[%emt 0:00:00]} Nd7 {[%emt 0:00:09]} 3. d4 {[%emt 0:00:00]} Ngf6 {[%emt 0:00:19]} 4. Bg2 {[%emt 0:00:10]} e6 {[%emt 0:00:15]} 5. O-O {[%emt 0:00:17]} Be7 {[%emt 0:00:12]} 6. Nbd2 {[%emt 0:03:52]} O-O {[%emt 0:00:25]} 7. c4 {[%emt 0:01:48]} c6 {[%emt 0:03:53]} 8. Qc2 {[%emt 0:00:41]} b6 {[%emt 0:00:10]} 9. e4 {[%emt 0:01:42]} Bb7 {[%emt 0:01:27]} 10. e5 {[%emt 0:08:53]} Ne8 {[%emt 0:00:08]} 11. b3 {[%emt 0:04:48]} Rc8 {[%emt 0:06:28]} 12. Bb2 {[%emt 0:02:51]} c5 {[%emt 0:05:47]} 13. Rac1 {[%emt 0:01:50] E09: Closed Catalan: Main Line: 7 Qc2 c6 8 Nbd2.} Nc7 {[%emt 0:11:43]} 14. Rfd1 {[%emt 0:02:06]} cxd4 {[%emt 0:07:20]} 15. Nxd4 {[%emt 0:07:23] White is slightly better.} a6 $146 {[%emt 0:10:14]} (15... Nxe5 $14 {was preferable.} 16. Nxe6 Nxe6 17. Bxe5 Ba8) (15... Bc5 16. f4 Qe7 17. N2f3 Rfd8 18. Kh1 dxc4 19. Ng5 Bxg2+ 20. Kxg2 Nf8 21. Nc6 Qe8 22. Nxd8 cxb3 23. axb3 Rxd8 {1-0 Hertneck,G (2541)-Galkin,A (2587) EU-ch 1st Saint Vincent 2000 (4)}) 16. Nf1 $16 {[%emt 0:04:27]} Nb5 {[%emt 0:05:37]} 17. Nxb5 {[%emt 0:03:00]} axb5 {[%emt 0:00:04]} 18. Qe2 {[%emt 0:04:54]} (18. Qb1 $14) 18... bxc4 $15 {[%emt 0:01:06]} 19. bxc4 {[%emt 0:00:11]} Ba6 {[%emt 0:00:18][%cal Ra6c4]} 20. Ne3 {[%emt 0:01:05]} Bc5 {[%emt 0:04:44]} 21. Nxd5 {[%emt 0:11:57]} exd5 $17 {[%emt 0:00:22]} 22. Bxd5 {[%emt 0:00:23]} Qe7 {[%emt 0:06:29]} 23. e6 {[%emt 0:06:37]} Kh8 {[%emt 0:01:25]} 24. Bxg7+ {[%emt 0:03:48]} Kxg7 {[%emt 0:00:02][%csl Oc5] Strong Square Black (c5)} 25. Qg4+ {[%emt 0:00:15]} Kh8 {[%emt 0:00:05]} 26. exd7 {[%emt 0:00:18]} Rcd8 $36 {[%emt 0:00:27][%mdl 2048] Black is on the roll.} 27. Be4 $2 {[%emt 0:01:07] [#] Loses the game.} (27. Bc6 $17) 27... f5 $1 $19 {[%emt 0:07:03][%mdl 512]} 28. Bxf5 {[%emt 0:00:31] [#]} Bb7 {[%emt 0:09:42] Hoping for ...Qe5. Wards off Qf3} 29. Qh5 $2 {[%emt 0:06:01]} (29. Qf4 Bc6 (29... Qf6 $2 30. g4 $19) 30. g4) 29... Be4 {[%emt 0:03:22] A strong pair of Bishops.} (29... Bxf2+ $142 30. Kxf2 Qc5+ (30... Rxd7 $2 31. Rxd7 Qxd7 32. Rd1 $19) 31. Ke2 Qe5+ (31... Qxf5 32. Qxf5 Rxf5 33. Rd6 $17) (31... Rxf5 $2 32. Qe8+ Kg7 33. Rd3 $19) 32. Kd3 Rxd7+ (32... Qxf5+ 33. Qxf5 Rxf5 34. Kc3 $17) 33. Kc2 Rxf5) 30. Re1 {[%emt 0:00:46]} (30. Bxe4 $142 Bxf2+ (30... Qxe4 $2 31. Rd2 $19) 31. Kg2 Qxe4+ 32. Kh3) 30... Rxf5 {[%emt 0:00:16]} (30... Bxf2+ $142 31. Kxf2 Qc5+ (31... Rxf5+ $2 32. Qxf5 Rf8 33. Qxf8+ Qxf8+ 34. Kg1 $19) (31... Qxd7 $2 32. Rcd1 $19) 32. Re3 Rxf5+ (32... Qxf5+ $2 33. Qxf5 Bxf5 34. Rf3 $19) 33. Qxf5 Qxf5+ (33... Bxf5 $2 34. h3 $19) 34. Ke1 Qxd7 (34... Rxd7 35. g4 $19) 35. Rxe4 Qd2+ 36. Kf1 Qxc1+ 37. Kg2 Qc2+ 38. Kf3 Qd3+ (38... Qxa2 $2 39. Kg4 $19) 39. Re3 Rf8+ (39... Qxc4 {is a self mate.} 40. g4 Rf8+ 41. Kg3 Qf4+ 42. Kh3 Qxe3+ 43. Kh4 Rf6 44. g5 Rf4+ 45. Kh5 Qh3#) 40. Kg4 Qxe3 41. a4 Qe6+ 42. Kg5 Rf5+ (42... Qxc4 43. h3 h6+ 44. Kg6 Qc6+ 45. Kh5 Qd5+ 46. Kxh6 Rf6#) 43. Kh4 Qh6+ 44. Kg4 Qh5#) 31. Qg4 {[%emt 0:02:22]} Bxf2+ {[%emt 0:00:47] Weighted Error Value: White=1.53/Black=0.55  Loses game:     	White=1     	---        Mistake:       	White=4     	Black=2      Inaccurate:     	White=1     	Black=1      OK:         	White=6     	Black=3      Best:        	White=1     	Black=4      Brilliant:      	---       	Black=1} 0-1

[Event "Silves Open 2025"]
[Site "Fissul"]
[Date "2025.03.06"]
[Round "8.15"]
[White "Ryabukhina, Veronika"]
[Black "Santos, Joao Artur Almeida"]
[Result "0-1"]
[Annotator "TA"]
[ECO "E11"]
[WhiteElo "1880"]
[BlackElo "1950"]
[PlyCount "118"]
[EventDate "2025.03.03"]
[EventType "swiss"]
[EventCountry "POR"]
[SourceTitle "playchess.com"]
[Source "ChessBase"]
[SourceQuality "1"]
[TimeControl "5400+30"]

{[%evp 15,118,16,28,12,61,69,119,63,125,135,171,157,216,223,196,225,191,86,193,200,185,189,202,112,101,95,90,95,104,100,102,113,113,-1,0,-60,-27,-85,-100,-103,1,-89,-67,-139,-92,-108,-1,-87,-98,-160,-77,-100,0,0,33,35,43,-33,-25,-41,-25,-28,-35,-28,-34,-29,-12,-36,-22,-14,-10,-78,-63,-62,-30,-123,-130,-130,-130,-152,-109,-180,-146,-175,-118,-198,-188,-218,-108,-106,-85,-280,-67,-1023,-1046,-1022,-1012,-1071,-1052,-29988,-29989,-29989,-29990,-29990,-29991]} 1. d4 {[%emt 1:31:00]} Nf6 {[%emt 1:31:00]} 2. c4 {[%emt 0:00:30]} e6 {[%emt 0:00:30]} 3. Nf3 {[%emt 0:00:30]} Bb4+ {[%emt 0:00:30]} 4. Bd2 {[%emt 0:00:30]} Qe7 {[%emt 0:00:30]} 5. g3 {[%emt 0:00:30]} Nc6 {[%emt 0:00:30]} 6. Bg2 {[%emt 0:00:30]} Bxd2+ {[%emt 0:00:30]} 7. Qxd2 {[%emt 0:00:30]} Ne4 {[%emt 0:00:30]} 8. Qc2 {[%emt 0:00:30]} Qb4+ {[%emt 0:00:30]} 9. Nc3 {[%emt 0:00:30] E11: Bogo-Indian.} (9. Kf1 $5) 9... f5 {[%emt 0:00:30]} (9... Nxc3 $11 10. Qxc3 Qxc3+ 11. bxc3 Na5) 10. c5 {[%emt 0:00:30]} d5 $146 {[%emt 0:00:30]} (10... b6 $14) ({Predecessor:} 10... Nxd4 11. Nxd4 Qxd4 12. Nxe4 fxe4 13. Bxe4 Qb4+ 14. Kf1 d5 15. Bxh7 e5 16. h4 e4 {1-0 Leitner,G (2234)-Schmoldt,R (2145) St Veit op-A 29th 2010 (6)}) 11. cxd6 {[%emt 0:00:30]} (11. e3 $16) 11... Nxd6 {[%emt 0:00:30]} (11... cxd6 $14 12. a3 Qc4) 12. Rd1 {[%emt 0:00:30]} Bd7 {[%emt 0:00:30]} 13. O-O {[%emt 0:00:30]} O-O-O {[%emt 0:00:30]} (13... Qc4 $16 14. Ne5 Nxe5) 14. a3 $18 {[%emt 0:00:30]} Qc4 {[%emt 0:00:30]} 15. b3 {[%emt 0:00:30]} Qa6 {[%emt 0:00:30]} 16. d5 {[%emt 0:00:30]} (16. Na4 $18) 16... Ne7 {[%emt 0:00:30]} (16... exd5 $16 17. Nxd5 Kb8) 17. dxe6 {[%emt 0:00:30]} Bxe6 {[%emt 0:00:30]} 18. Nd4 {[%emt 0:00:30]} Bd7 {[%emt 0:00:30]} 19. a4 {[%emt 0:00:30]} (19. Rc1 $18) 19... Kb8 $16 {[%emt 0:00:30]} 20. Na2 {[%emt 0:00:30]} Qa5 {[%emt 0:00:30]} 21. Rc1 {[%emt 0:00:30] Hoping for b4.} Rc8 {[%emt 0:00:30]} 22. Rfd1 {[%emt 0:00:30] White has strong rooks and is better} h5 {[%emt 0:00:30]} 23. h4 {[%emt 0:00:30]} (23. Nf3 {simplifies} g6 24. Qb2 Qb6 25. Nc3) 23... g5 {[%emt 0:00:30]} 24. Nf3 {[%emt 0:00:30]} (24. b4 $16 Qe5 25. Nf3 (25. hxg5 h4 $16)) 24... gxh4 $11 {[%emt 0:00:30]} 25. gxh4 {[%emt 0:00:30]} (25. Nxh4 $11 f4 26. gxf4) 25... Bc6 {[%emt 0:00:30]} (25... Rhg8 {is more complex.} 26. Qc3 Qb6 27. Ng5 Bc6) 26. Qc5 {[%emt 0:00:30]} (26. Qc3 $11 Qxc3 27. Nxc3) 26... Qxc5 $17 {[%emt 0:00:30]} 27. Rxc5 {[%emt 0:00:30]} Ng6 {[%emt 0:00:30]} (27... Rcg8 $17 28. Ng5 Bxg2 29. Kxg2 Ne4) 28. Rd4 {[%emt 0:00:30]} (28. Rxc6 $11 bxc6 29. Nd4) 28... Rce8 {[%emt 0:00:30]} 29. e3 {[%emt 0:00:30]} (29. Kf1 $15) 29... Rhg8 {[%emt 0:00:30]} (29... Be4 $142 30. Kf1 Reg8) 30. Kf1 {[%emt 0:00:30] [#]} Rg7 {[%emt 0:00:30]} (30... Be4 $1 $17 31. Rc1 Ne5) 31. Nb4 {[%emt 0:00:30]} (31. Nc3 $11) 31... Be4 {[%emt 0:00:30]} 32. Nd3 {[%emt 0:00:30]} ({White should play} 32. Nd5) 32... Reg8 {[%emt 0:00:30]} (32... Nf8 $142 33. Re5 Ne6 34. Rxe6 Rxe6) 33. Nde1 {[%emt 0:00:30]} Nf8 {[%emt 0:00:30]} (33... b6 $17 34. Rc3 Bb7) 34. Ng5 $11 {[%emt 0:00:30]} Bxg2+ {[%emt 0:00:30]} 35. Nxg2 {[%emt 0:00:30]} Ng6 {[%emt 0:00:30][%cal Og6h4]} 36. f4 {[%emt 0:00:30]} (36. Ne6 $14 Rf7 37. Ke2) 36... Re7 {[%emt 0:00:30]} 37. Rd1 {[%emt 0:00:30]} Rge8 {[%emt 0:00:30]} 38. Nf3 {[%emt 0:00:30]} Ne4 {[%emt 0:00:30]} 39. Rcd5 {[%emt 0:00:30]} Kc8 {[%emt 0:00:30] Prevents Rd8+} 40. Rc1 {[%emt 0:00:30] Prevents Nc3.} c6 {[%emt 0:00:30]} 41. Rd3 {[%emt 0:00:30]} Rd7 {[%emt 0:00:30]} 42. Rxd7 {[%emt 0:00:30]} Kxd7 {[%emt 0:00:30]} 43. Nd4 {[%emt 0:00:30]} (43. Ke2 $11) 43... Ne7 $17 {[%emt 0:00:30]} 44. b4 {[%emt 0:00:30]} Rf8 {[%emt 0:00:30]} 45. Nf3 {[%emt 0:00:30]} (45. Ne1 $11 {remains equal.}) 45... Nd5 {[%emt 0:00:30]} 46. b5 {[%emt 0:00:30]} c5 {[%emt 0:00:30]} 47. Ng5 {[%emt 0:00:30]} Kd6 {[%emt 0:00:30]} 48. a5 {[%emt 0:00:30]} (48. Ke2 $17) 48... Rc8 {[%emt 0:00:30]} 49. Nf7+ {[%emt 0:00:30]} Ke6 {[%emt 0:00:30]} (49... Ke7 $19 50. Ne5 c4) 50. Ne5 {[%emt 0:00:30] [#]} (50. Ng5+ $17 Kd6 51. Nxe4+ fxe4 52. Rc4) 50... c4 $1 {[%emt 0:00:30][%mdl 512]} 51. Ke2 {[%emt 0:00:30]} (51. Nxc4 $2 Rxc4 (51... Nd2+ $2 52. Nxd2 Rxc1+ 53. Kf2 $19) 52. Rxc4 Nd2+ 53. Ke2 Nxc4 $19) (51. Nf3 Kf6) 51... c3 {[%emt 0:00:30]} (51... Ndc3+ $19 52. Kf1 Nxb5 (52... Kd5 $2 53. a6 $19)) 52. Ne1 {[%emt 0:00:30]} Nb4 {[%emt 0:00:30] Black is much more active.} 53. N5d3 $2 {[%emt 0:00:30]} (53. N5f3 $17) 53... Rc4 $2 {[%emt 0:00:30]} ({Black should try} 53... Rd8 $19 {Strongly threatening ...Nxd3.} 54. Rd1 (54. Nxb4 Rd2+ 55. Kf1 Ng3+ 56. Kg1 Ne2+ 57. Kf1 Nxc1 $19) 54... Rd7) 54. Nf3 $2 {[%emt 0:00:30][%mdl 8192]} (54. Nxb4 $15 Rxb4 55. Nc2) 54... Ng3+ $19 {[%emt 0:00:30]} 55. Kd1 {[%emt 0:00:30]} Nxd3 {[%emt 0:00:30]} 56. Nd4+ {[%emt 0:00:30] [#]} Rxd4 $1 {[%emt 0:00:30]} 57. exd4 {[%emt 0:00:30]} (57. Rxc3 Rd5) 57... Nxc1 {[%emt 0:00:30] Black mates.} ({Weaker is} 57... Nxf4 58. Rxc3 Ne4 59. Rc7 $15) 58. Kxc1 {[%emt 0:00:30]} Kd5 {[%emt 0:00:30]} 59. Kc2 {[%emt 0:00:30]} Kxd4 {[%emt 0:00:30] Weighted Error Value: White=0.59/Black=0.35  Loses game:     	White=2     	---        Missed win:     	---       	Black=1      Mistake:       	White=15    	Black=12     Inaccurate:     	---       	Black=3      OK:         	White=9     	Black=10     Best:        	White=2     	Black=5} 0-1

[Event "Silves Open 2025"]
[Site "Fissul"]
[Date "2025.03.06"]
[Round "8.16"]
[White "Adams, Philip"]
[Black "Van Ginkel, Henk"]
[Result "1-0"]
[Annotator "TA"]
[ECO "B22"]
[WhiteElo "1903"]
[BlackElo "1811"]
[PlyCount "49"]
[EventDate "2025.03.03"]
[EventType "swiss"]
[EventCountry "POR"]
[SourceTitle "playchess.com"]
[Source "ChessBase"]
[SourceQuality "1"]
[TimeControl "5400+30"]

{[%evp 10,49,23,20,84,21,23,19,202,156,171,182,259,246,378,277,324,306,324,293,285,283,543,436,382,398,537,417,408,414,701,709,715,712,671,426,429,430,921,955,1464,1468]} 1. e4 {[%emt 1:31:00]} c5 {[%emt 1:31:00]} 2. c3 {[%emt 0:00:30]} d5 3. exd5 Qxd5 4. d4 Nc6 5. Nf3 Nf6 6. Be2 g6 {B22: Sicilian: 2 c3.} (6... cxd4 $11 {remains equal.} 7. cxd4 e6) 7. Na3 (7. c4 $16 Qd6 8. d5) 7... cxd4 $11 8. Nb5 Kd8 $146 {[#] Prevents Nc7. This move loses the game for Black.} (8... Qd7 $11 {and Black stays safe.}) (8... Qd8 9. Bf4 Nd5 10. Bg3 Bh6 11. Nfxd4 O-O 12. Nxc6 bxc6 13. Nd4 Nf4 14. O-O c5 15. Bxf4 Bxf4 {½-½ Schneider,I (2519)-Nisipeanu,L (2683) Bundesliga 1011 2010 (6.5)}) 9. cxd4 ({Don't play} 9. Nbxd4 $6 Bd7 $16) 9... a6 10. Nc3 Qa5 (10... Qd6 $142) 11. O-O $18 Bg4 (11... Ke8 {is a better defense.} 12. d5 Nb8) 12. Be3 {[#] d5 would now be deadly.} Nd5 13. Nxd5 Qxd5 14. h3 {[%emt 0:00:00]} Bxf3 {[%emt 0:00:00]} 15. Bxf3 {[%emt 0:00:00]} Qb5 {[%emt 0:00:00]} (15... Qd7 16. Rc1 Bg7 17. Bxc6 bxc6) 16. d5 {[%emt 0:00:00]} Ne5 {[%emt 0:00:00]} 17. Be2 {[%emt 0:00:00] Inhibits Qd3. A strong pair of Bishops.} Qa5 {[%emt 0:00:00]} 18. a3 {[%emt 0:00:00]} Ke8 {[%emt 0:00:00][%cal Bd8e8,Be8f8,Bf8g7][%mdl 32]} 19. Qb3 {[%emt 0:00:00]} Qc7 {[%emt 0:00:00]} (19... Bg7 $142 20. Qxb7 Qd8) 20. Rac1 {[%emt 0:00:00] White is clearly winning.} Qb8 {[%emt 0:00:00]} 21. Bb6 {[%emt 0:00:00]} Bg7 {[%emt 0:00:00] Black is weak on the light squares} 22. Qa4+ {[%emt 0:00:00]} Kf8 {[%emt 0:00:00]} 23. f4 {[%emt 0:00:00]} Bh6 {[%emt 0:00:00]} (23... Qe8 $142 24. Qxe8+ Kxe8 25. fxe5 Bxe5) 24. Rc7 {[%emt 0:00:00]} Kg7 {[%emt 0:00:00]} 25. Qd4 {[%emt 0:00:00] Weighted Error Value: White=0.40/Black=1.11  Loses game:     	---       	Black=1      Mistake:       	White=1     	Black=5      Inaccurate:     	---       	Black=2      OK:         	White=7     	Black=4      Best:        	White=1     	Black=1} 1-0